bitfinex/quotes_BTCUSD_20250614
["timestamp","ask_amount","ask_price","bid_price","bid_amount"]
[1749862688461,0.22471861,105800.0,105790.0,2.02194308]
[1749862689152,0.22471861,105800.0,105790.0,1.9352461]
[1749862690211,0.92471861,105800.0,105790.0,1.9352461]
[1749862690452,0.22471861,105800.0,105790.0,1.9352461]
[1749862690928,0.04513404,105800.0,105790.0,1.9352461]
[1749862691131,0.04513404,105800.0,105790.0,1.94469816]
[1749862692497,0.23416995,105800.0,105790.0,1.9352461]
[1749862692823,0.23416995,105800.0,105790.0,1.94469825]
[1749862693238,0.04513404,105800.0,105790.0,1.94469825]
[1749862694372,0.04513404,105800.0,105790.0,1.94469763]
[1749862694600,0.04513404,105800.0,105790.0,1.93524557]
[1749862695651,0.23416995,105800.0,105790.0,1.93524557]
[1749862699221,0.61764669,105800.0,105790.0,1.74324118]
[1749862699421,0.61404338,105800.0,105790.0,1.67678265]
[1749862699653,1.06558514,105800.0,105790.0,1.52018265]
[1749862699924,1.08558514,105800.0,105790.0,1.67678265]
[1749862701690,1.54305407,105800.0,105790.0,1.52018265]
[1749862701904,2.31563629,105800.0,105790.0,1.52018265]
[1749862702113,1.61563629,105800.0,105790.0,1.52904191]
[1749862702334,1.61563629,105800.0,105790.0,1.52904205]
[1749862702548,1.61563629,105800.0,105790.0,1.52904208]
[1749862702760,1.61563629,105800.0,105790.0,1.52904209]
[1749862702961,1.61563629,105800.0,105790.0,1.52018265]
[1749862703311,1.61563629,105800.0,105790.0,1.52904216]
[1749862703726,1.61563629,105800.0,105790.0,1.52018265]
[1749862703934,1.61563629,105800.0,105790.0,1.52904219]
[1749862704346,6.55339129,105800.0,105790.0,1.52904219]
[1749862704548,6.55339129,105800.0,105790.0,1.52018265]
[1749862704759,7.25339129,105800.0,105790.0,1.52018265]
[1749862704966,6.86046321,105800.0,105790.0,1.52018265]
[1749862706171,6.16046321,105800.0,105790.0,1.52904155]
[1749862706591,6.16046321,105800.0,105790.0,1.52018265]
[1749862706804,6.16046321,105800.0,105790.0,1.52904154]
[1749862707301,6.16046321,105800.0,105790.0,1.52018265]
[1749862707709,6.13788099,105800.0,105790.0,1.52018265]
[1749862709113,6.83788099,105800.0,105790.0,1.52018265]
[1749862709510,6.86627099,105800.0,105790.0,1.52018265]
[1749862710156,7.25919907,105800.0,105790.0,1.52018265]
[1749862710677,6.86627099,105800.0,105790.0,1.52018265]
[1749862712103,6.99889099,105800.0,105790.0,1.52018265]
[1749862712338,1.95453599,105800.0,105790.0,1.52018265]
[1749862712771,1.85457599,105800.0,105790.0,1.67674265]
[1749862712981,1.90457599,105800.0,105790.0,1.67674265]
[1749862713745,1.85457599,105800.0,105790.0,1.67674265]
[1749862714183,1.81321599,105800.0,105790.0,1.67674265]
[1749862714413,1.90457599,105800.0,105790.0,1.67674265]
[1749862714937,1.79791599,105800.0,105790.0,1.67674265]
[1749862715143,1.76337514,105800.0,105790.0,1.69254265]
[1749862715359,1.10473514,105800.0,105790.0,1.69254265]
[1749862717799,1.06337514,105800.0,105790.0,1.69254265]
[1749862717999,1.10473514,105800.0,105790.0,1.69254265]
[1749862718276,1.06337514,105800.0,105790.0,1.70884265]
[1749862718456,1.10469514,105800.0,105790.0,1.70884265]
[1749862719340,1.10469514,105800.0,105790.0,1.71766671]
[1749862719966,1.10469514,105800.0,105790.0,1.7176667]
[1749862720140,0.39461984,105800.0,105790.0,2.02240263]
[1749862720359,0.41352279,105800.0,105790.0,2.02240263]
[1749862720747,1.00493848,105800.0,105790.0,1.91680135]
[1749862720951,0.99548749,105800.0,105790.0,1.91680135]
[1749862721472,0.60255941,105800.0,105790.0,1.91680135]
[1749862721670,0.99548749,105800.0,105790.0,1.91680135]
[1749862721850,0.98603624,105800.0,105790.0,1.91680153]
[1749862722037,0.98603624,105800.0,105790.0,1.92625395]
[1749862722241,1.05601358,105800.0,105790.0,1.70884265]
[1749862722477,0.96713329,105800.0,105790.0,1.70884265]
[1749862723284,0.96713329,105800.0,105790.0,1.55228265]
[1749862723493,1.06337505,105800.0,105790.0,1.69254265]
[1749862724325,1.06337505,105800.0,105790.0,1.70854265]
[1749862725507,0.6798984,105800.0,105790.0,1.91650135]
[1749862725704,1.07282648,105800.0,105790.0,1.91650153]
[1749862726415,0.38513297,105800.0,105790.0,1.93540592]
[1749862726822,0.03568136,105800.0,105790.0,1.93540592]
[1749862727027,0.03568136,105800.0,105790.0,1.77884592]
[1749862727233,0.03568136,105800.0,105790.0,1.93536592]
[1749862727436,0.04513297,105800.0,105790.0,1.93536592]
[1749862727646,0.04513297,105800.0,105790.0,1.77884592]
[1749862727800,0.04513297,105800.0,105790.0,1.93536592]
[1749862728001,0.03568136,105800.0,105790.0,1.93536592]
[1749862728593,0.04513297,105800.0,105790.0,1.77884592]
[1749862728978,0.04513297,105800.0,105790.0,1.93536592]
[1749862729381,0.61764651,105800.0,105790.0,1.56143524]
[1749862729581,0.61764651,105800.0,105790.0,1.75994144]
[1749862729782,0.61764651,105800.0,105790.0,1.91646144]
[1749862730217,0.02623073,105800.0,105790.0,1.76939359]
[1749862730414,0.02623073,105800.0,105790.0,1.93536565]
[1749862730634,0.03568243,105800.0,105790.0,1.93536565]
[1749862730839,0.02623073,105800.0,105790.0,1.93536565]
[1749862731654,0.0073276,105800.0,105790.0,1.87499487]
[1749862731830,0.02622993,105800.0,105790.0,1.93536565]
[1749862732038,0.01890233,105800.0,105790.0,1.93532565]
[1749862732443,0.02835376,105800.0,105790.0,1.93532565]
[1749862732652,0.03780537,105800.0,105790.0,1.93532565]
[1749862732858,0.02835376,105800.0,105790.0,1.93532565]
[1749862733086,0.01890233,105800.0,105790.0,1.93532565]
[1749862733286,0.01890242,105800.0,105790.0,2.03147487]
[1749862733406,0.01890233,105800.0,105790.0,1.87499487]
[1749862733623,0.01890233,105800.0,105790.0,1.93532565]
[1749862733828,0.02835367,105800.0,105790.0,1.93532565]
[1749862734230,0.02835367,105800.0,105790.0,1.77884565]
[1749862734591,0.02835367,105800.0,105790.0,1.93532565]
[1749862734723,0.02835367,105800.0,105790.0,1.77884565]
[1749862734928,0.02835367,105800.0,105790.0,1.93532565]
[1749862735133,0.03772971,105800.0,105790.0,1.93532565]
[1749862735577,0.02827837,105800.0,105790.0,1.93532565]
[1749862735907,0.0377298,105800.0,105790.0,1.93532565]
[1749862736142,0.02827837,105800.0,105790.0,1.93532565]
[1749862736336,0.03772971,105800.0,105790.0,1.93532565]
[1749862736857,0.62914531,105800.0,105790.0,1.75994135]
[1749862737061,0.4495611,105800.0,105790.0,1.92587341]
[1749862737541,0.63859772,105800.0,105790.0,1.92587341]
[1749862737691,0.44956181,105800.0,105790.0,1.92587341]
[1749862738049,0.44956181,105800.0,105790.0,1.75994135]
[1749862738223,0.63859772,105800.0,105790.0,1.93532574]
[1749862739122,0.63859772,105800.0,105790.0,1.92587359]
[1749862739445,0.63859772,105800.0,105790.0,1.93532574]
[1749862739862,0.63859772,105800.0,105790.0,1.77884574]
[1749862740081,0.62914647,105800.0,105790.0,1.77884574]
[1749862740286,0.62914647,105800.0,105790.0,1.9447378]
[1749862740287,0.44011056,105800.0,105790.0,1.9447378]
[1749862740918,0.62914647,105800.0,105790.0,1.93528574]
[1749862741618,0.70648528,105800.0,105790.0,1.53598265]
[1749862741838,0.3299572,105800.0,105790.0,1.67662265]
[1749862742060,0.72288528,105800.0,105790.0,1.67662265]
[1749862742325,0.75127028,105800.0,105790.0,1.52018265]
[1749862742518,0.75127028,105800.0,105790.0,1.67662265]
[1749862742929,0.02827881,105800.0,105790.0,1.9843312]
[1749862743140,0.03772998,105800.0,105790.0,2.00323559]
[1749862743341,0.03772989,105800.0,105790.0,1.84679559]
[1749862743522,0.02827846,105800.0,105790.0,2.00323559]
[1749862744383,0.00937604,105800.0,105790.0,2.31836149]
[1749862744588,0.00937604,105800.0,105790.0,1.76899341]
[1749862744794,0.05780162,105810.0,105800.0,0.24829021]
[1749862745049,0.54697146,105810.0,105800.0,0.40477791]
[1749862745224,0.55642218,105810.0,105800.0,0.24833791]
[1749862745447,0.74544095,105810.0,105800.0,0.39532674]
[1749862745652,0.14459329,105810.0,105800.0,0.25778916]
[1749862745855,0.53752146,105810.0,105800.0,0.41422916]
[1749862746298,0.14459311,105810.0,105800.0,0.41422916]
[1749862746510,0.13514239,105810.0,105800.0,0.41422916]
[1749862746968,0.15404374,105810.0,105800.0,0.40477791]
[1749862747188,0.54697182,105810.0,105800.0,0.24833791]
[1749862747599,0.5375211,105810.0,105800.0,0.40477791]
[1749862748206,0.54697182,105810.0,105800.0,0.40477791]
[1749862748355,0.56581074,105810.0,105800.0,0.40477791]
[1749862748558,0.56581065,105810.0,105800.0,0.24833791]
[1749862748757,0.56581065,105810.0,105800.0,0.40477791]
[1749862748949,0.56581065,105810.0,105800.0,0.24833791]
[1749862749167,0.56581074,105810.0,105800.0,0.24833791]
[1749862749370,0.75482879,105810.0,105800.0,0.24833799]
[1749862749569,0.75482879,105810.0,105800.0,0.40473799]
[1749862750236,0.74537861,105810.0,105800.0,0.39528674]
[1749862750465,0.74537861,105810.0,105800.0,0.40473808]
[1749862750623,1.14743497,105810.0,105800.0,4.77e-05]
[1749862750846,0.79578689,105810.0,105800.0,0.1564477]
[1749862751047,0.60676839,105810.0,105800.0,0.37103531]
[1749862751294,0.78633599,105810.0,105800.0,0.1725477]
[1749862751657,0.74505599,105810.0,105800.0,0.1725477]
[1749862752067,0.78633599,105810.0,105800.0,0.0161477]
[1749862752278,0.78633599,105810.0,105800.0,0.1725477]
[1749862752891,0.74505599,105810.0,105800.0,0.1725477]
[1749862755346,0.74505599,105810.0,105800.0,0.1704277]
[1749862755947,0.74505599,105810.0,105800.0,0.1564]
[1749862756145,0.35212791,105810.0,105800.0,0.1564]
[1749862756393,0.74505599,105810.0,105800.0,0.1564]
[1749862757021,0.76025599,105810.0,105800.0,0.1564]
[1749862757699,0.19848752,105800.0,105790.0,1.75418923]
[1749862757926,0.5914156,105800.0,105790.0,1.91063692]
[1749862758359,0.5914156,105800.0,105790.0,1.92703692]
[1749862758583,0.61977007,105800.0,105790.0,1.75173253]
[1749862758805,0.60086748,105800.0,105790.0,1.52023034]
[1749862759029,0.71230924,105800.0,105790.0,1.67663034]
[1749862759484,0.69710924,105800.0,105790.0,1.67663034]
[1749862759919,0.69710924,105800.0,105790.0,1.53663034]
[1749862760153,0.69710924,105800.0,105790.0,1.69303034]
[1749862760402,0.2079394,105800.0,105790.0,1.91628887]
[1749862760630,0.20793904,105800.0,105790.0,2.01243827]
[1749862760857,0.21739083,105800.0,105790.0,1.9257412]
[1749862762318,0.02835492,105800.0,105790.0,1.9257412]
[1749862762840,0.21739083,105800.0,105790.0,1.9257412]
[1749862763043,0.21739083,105800.0,105790.0,1.92574138]
[1749862763186,0.21739083,105800.0,105790.0,1.93519362]
[1749862763725,0.21739083,105800.0,105790.0,1.94464577]
[1749862764059,0.02835492,105800.0,105790.0,1.94464577]
[1749862764224,0.21739083,105800.0,105790.0,1.93519362]
[1749862765195,0.21739083,105800.0,105790.0,1.92574138]
[1749862767964,0.02835492,105800.0,105790.0,1.93519344]
[1749862768228,0.21739083,105800.0,105790.0,1.93519362]
[1749862769348,0.2079394,105800.0,105790.0,1.92574138]
[1749862771456,0.2079394,105800.0,105790.0,1.75043663]
[1749862771658,0.1984877,105800.0,105790.0,1.91624905]
[1749862773529,0.1984877,105800.0,105790.0,1.92570129]
[1749862778431,0.25588588,105810.0,105790.0,1.94460532]
[1749862778655,0.00938802,105810.0,105800.0,0.40475021]
[1749862778872,0.00944938,105820.0,105810.0,0.24836967]
[1749862779128,1.05889858,105820.0,105810.0,0.40468904]
[1749862779342,0.71889858,105820.0,105810.0,0.40468904]
[1749862779562,0.7,105820.0,105810.0,0.79761712]
[1749862779769,0.00944831,105830.0,105820.0,0.24834913]
[1749862779970,0.38837365,105840.0,105830.0,0.21732859]
[1749862780169,0.76726964,105840.0,105830.0,0.40464859]
[1749862780371,1.10350487,105840.0,105830.0,0.40464859]
[1749862780563,0.78240041,105840.0,105830.0,0.40464859]
[1749862780771,0.42240041,105840.0,105830.0,0.40464859]
[1749862781118,0.42240041,105840.0,105830.0,0.40469628]
[1749862781915,0.43184863,105840.0,105830.0,0.40469628]
[1749862782114,0.6113656,105840.0,105830.0,0.40469646]
[1749862783247,0.6113656,105840.0,105830.0,0.41414504]
[1749862783818,0.41295291,105840.0,105830.0,0.42359353]
[1749862784331,0.42240113,105840.0,105830.0,0.42359353]
[1749862785040,0.6113656,105840.0,105830.0,0.41414504]
[1749862785239,0.07295291,105840.0,105830.0,0.42359353]
[1749862786277,0.06350478,105840.0,105830.0,0.42359353]
[1749862786562,0.03892561,105840.0,105830.0,0.42359353]
[1749862788380,0.03892561,105840.0,105830.0,0.81652161]
[1749862788585,0.03892561,105840.0,105830.0,0.91276337]
[1749862791210,0.40949788,105860.0,105850.0,0.23318753]
[1749862791416,0.40949788,105860.0,105850.0,0.38942753]
[1749862791607,0.41894414,105860.0,105850.0,0.38942753]
[1749862791811,0.40949788,105860.0,105850.0,0.38942753]
[1749862792033,0.40949788,105860.0,105850.0,0.40472753]
[1749862792470,0.37391293,105860.0,105850.0,0.40472753]
[1749862792672,0.38335919,105860.0,105850.0,0.40472753]
[1749862792882,0.24107473,105880.0,105860.0,0.233167]
[1749862793084,0.35889054,105870.0,105860.0,0.233167]
[1749862793287,0.75181862,105870.0,105860.0,0.389407]
[1749862793611,0.75181818,105870.0,105860.0,0.389407]
[1749862793812,0.76126354,105870.0,105860.0,0.22372119]
[1749862794013,0.76126354,105870.0,105860.0,0.39885299]
[1749862794212,0.36833546,105870.0,105860.0,0.41415299]
[1749862794416,0.3588901,105870.0,105860.0,0.41415299]
[1749862794637,0.76126354,105870.0,105860.0,0.41415299]
[1749862795059,0.77070899,105870.0,105860.0,0.41415299]
[1749862795604,0.77637058,105870.0,105860.0,0.41415299]
[1749862795804,0.9652815,105870.0,105860.0,0.23902119]
[1749862796014,0.95583658,105870.0,105860.0,0.24846718]
[1749862796217,0.20782102,105860.0,105850.0,0.02594724]
[1749862796553,0.6007491,105860.0,105850.0,0.36404101]
[1749862796774,0.59130311,105860.0,105850.0,0.35459386]
[1749862797315,0.58185685,105860.0,105850.0,0.1562]
[1749862797509,0.58185685,105860.0,105850.0,0.16564733]
[1749862799248,0.58185685,105860.0,105850.0,0.1562]
[1749862799941,0.21728762,105850.0,105840.0,0.24919285]
[1749862800147,0.028341,105850.0,105840.0,0.40535285]
[1749862800342,0.22673459,105850.0,105840.0,0.39590517]
[1749862800576,0.22673459,105850.0,105840.0,0.23974517]
[1749862800577,0.21728789,105850.0,105840.0,0.23974517]
[1749862800770,0.20786064,105840.0,105830.0,0.23057895]
[1749862800991,0.02834376,105840.0,105830.0,0.41508486]
[1749862801164,0.02834376,105840.0,105830.0,0.25892486]
[1749862801370,0.02834331,105840.0,105830.0,0.41508486]
[1749862801570,0.03779135,105840.0,105830.0,0.41508486]
[1749862801941,0.02834331,105840.0,105830.0,0.41508486]
[1749862802553,0.01889536,105840.0,105830.0,0.41508486]
[1749862802669,0.0283434,105840.0,105830.0,0.41508486]
[1749862803083,0.60078836,105840.0,105830.0,4.769e-05]
[1749862803280,0.60078836,105840.0,105830.0,0.18903002]
[1749862803489,0.60078836,105840.0,105830.0,0.35463904]
[1749862803720,0.60078836,105840.0,105830.0,0.15620769]
[1749862803923,0.60078836,105840.0,105830.0,0.18903002]
[1749862804127,0.60078836,105840.0,105830.0,0.15620769]
[1749862804339,0.59134059,105840.0,105830.0,0.15620769]
[1749862804747,0.60694059,105840.0,105830.0,0.15620769]
[1749862805869,0.60694059,105840.0,105830.0,4.769e-05]
[1749862806087,0.60694059,105840.0,105830.0,0.15620769]
[1749862806513,0.60694059,105840.0,105830.0,4.769e-05]
[1749862806717,0.70318235,105840.0,105830.0,4.769e-05]
[1749862806890,0.71958235,105840.0,105830.0,0.15620769]
[1749862807753,0.70304065,105840.0,105830.0,0.15620769]
[1749862811437,0.70304065,105840.0,105830.0,0.35463904]
[1749862811661,0.02834331,105840.0,105830.0,0.41468513]
[1749862811857,0.21730778,105840.0,105830.0,0.21407904]
[1749862812065,0.61023586,105840.0,105830.0,0.37968779]
[1749862812477,0.21730778,105840.0,105830.0,0.37023904]
[1749862812629,0.60078836,105840.0,105830.0,0.37968797]
[1749862812839,0.59134059,105840.0,105830.0,0.1812568]
[1749862813045,0.59134059,105840.0,105830.0,0.37023913]
[1749862813672,0.59134059,105840.0,105830.0,0.17180769]
[1749862813857,0.58189255,105840.0,105830.0,0.17180769]
[1749862814104,0.58189255,105840.0,105830.0,0.15620769]
[1749862814300,0.59799255,105840.0,105830.0,0.15620769]
[1749862815664,1.04953431,105840.0,105830.0,0.15620769]
[1749862816505,1.04953431,105840.0,105830.0,4.769e-05]
[1749862816705,1.04953431,105840.0,105830.0,0.15620769]
[1749862819047,1.48246239,105840.0,105830.0,4.769e-05]
[1749862821462,2.39700324,105840.0,105830.0,4.769e-05]
[1749862821670,2.42538124,105840.0,105830.0,4.769e-05]
[1749862822903,7.36313624,105840.0,105830.0,4.769e-05]
[1749862823521,7.36101624,105840.0,105830.0,4.769e-05]
[1749862823725,7.41101624,105840.0,105830.0,4.769e-05]
[1749862823935,7.46101624,105840.0,105830.0,4.769e-05]
[1749862824820,7.46101624,105840.0,105790.0,1.71858765]
[1749862824821,0.18903591,105800.0,105790.0,1.55258265]
[1749862825083,0.5914156,105800.0,105790.0,1.70875019]
[1749862825301,0.5914156,105800.0,105790.0,1.71757734]
[1749862825537,0.5914156,105800.0,105790.0,1.54555744]
[1749862825759,0.5914156,105800.0,105790.0,1.70167744]
[1749862825985,0.5914156,105800.0,105790.0,1.70167745]
[1749862826251,0.5914156,105800.0,105790.0,1.71777747]
[1749862826481,0.5914156,105800.0,105790.0,1.70895019]
[1749862826913,0.5914156,105800.0,105790.0,1.71777743]
[1749862827395,0.5914156,105800.0,105790.0,1.71777744]
[1749862828110,0.5914156,105800.0,105790.0,1.71777745]
[1749862828332,0.5914156,105800.0,105790.0,1.70171745]
[1749862828564,0.5914156,105800.0,105790.0,1.7105047]
[1749862828834,0.5914156,105800.0,105790.0,1.71050473]
[1749862829072,0.5914156,105800.0,105790.0,1.70167745]
[1749862829303,0.5914156,105800.0,105790.0,1.71050479]
[1749862829536,0.5914156,105800.0,105790.0,1.70167745]
[1749862829767,0.59705195,105800.0,105790.0,1.70167745]
[1749862829985,0.59705195,105800.0,105790.0,1.71050478]
[1749862830214,0.59705195,105800.0,105790.0,1.7105048]
[1749862830443,0.59705195,105800.0,105790.0,1.71050478]
[1749862830913,0.59705195,105800.0,105790.0,1.71050477]
[1749862831381,0.59705195,105800.0,105790.0,1.71050481]
[1749862831604,1.04959371,105800.0,105790.0,1.69400506]
[1749862832382,1.04959371,105800.0,105790.0,1.53788506]
[1749862832630,1.04959371,105800.0,105790.0,1.6940155]
[1749862832858,1.04959371,105800.0,105790.0,1.69401555]
[1749862833318,1.04959371,105800.0,105790.0,1.68517745]
[1749862833545,1.04959371,105800.0,105790.0,1.53789559]
[1749862833762,1.04959371,105800.0,105790.0,1.68517745]
[1749862834187,1.04959371,105800.0,105790.0,1.69401548]
[1749862834477,1.04959371,105800.0,105790.0,1.69401556]
[1749862834691,1.04959371,105800.0,105790.0,1.68517745]
[1749862834917,1.04959371,105800.0,105790.0,1.69401565]
[1749862835141,1.10489371,105800.0,105790.0,1.52905745]
[1749862835397,1.10489371,105800.0,105790.0,1.69401568]
[1749862835648,1.10489371,105800.0,105790.0,1.53789572]
[1749862835897,1.10489371,105800.0,105790.0,1.53789566]
[1749862836137,1.80489371,105800.0,105790.0,1.53789573]
[1749862836390,1.80489371,105800.0,105790.0,1.53789585]
[1749862836897,1.80489371,105800.0,105790.0,1.52905745]
[1749862839453,2.21943456,105800.0,105790.0,1.52905745]
[1749862840134,2.41663456,105800.0,105790.0,1.52905745]
[1749862841345,1.82650648,105800.0,105790.0,1.52905745]
[1749862841645,2.01437371,105800.0,105790.0,1.81262667]
[1749862841882,2.01437371,105800.0,105790.0,1.71647745]
[1749862843076,1.31437371,105800.0,105790.0,1.68517745]
[1749862843285,1.34607371,105800.0,105790.0,1.68517745]
[1749862844303,1.34607371,105800.0,105790.0,1.52905745]
[1749862844506,1.34607371,105800.0,105790.0,1.68517745]
[1749862845252,1.36061456,105800.0,105790.0,1.68517745]
[1749862846032,2.06061456,105800.0,105790.0,1.68517745]
[1749862848976,2.08900256,105800.0,105790.0,1.68517745]
[1749862849189,2.07370256,105800.0,105790.0,1.68517745]
[1749862849575,2.1436799,105800.0,105790.0,1.68517745]
[1749862849785,2.07370256,105800.0,105790.0,1.68517745]
[1749862852098,1.62329448,105800.0,105790.0,1.68517745]
[1749862852352,1.34272171,105800.0,105790.0,1.70157745]
[1749862852567,1.34272171,105800.0,105790.0,1.71787745]
[1749862857376,2.04272171,105800.0,105790.0,1.71787745]
[1749862859312,2.00168171,105800.0,105790.0,1.71787745]
[1749862859552,2.04272171,105800.0,105790.0,1.71787745]
[1749862860478,2.04272171,105800.0,105790.0,1.70157745]
[1749862860694,2.04272171,105800.0,105790.0,1.68517745]
[1749862860914,2.04272171,105800.0,105790.0,1.69403819]
[1749862861558,2.04272171,105800.0,105790.0,1.69403828]
[1749862861776,2.04272171,105800.0,105790.0,1.68517745]
[1749862861992,2.04272171,105800.0,105790.0,1.69403825]
[1749862862210,2.04272171,105800.0,105790.0,1.69403827]
[1749862862417,2.04272171,105800.0,105790.0,1.69403832]
[1749862862622,2.04272171,105800.0,105790.0,1.69403826]
[1749862862824,2.04272171,105800.0,105790.0,1.68517745]
[1749862863044,2.21622256,105800.0,105790.0,1.52905745]
[1749862863269,2.31064299,105800.0,105790.0,1.52905745]
[1749862863476,2.31064299,105800.0,105790.0,1.53791878]
[1749862863907,2.31064299,105800.0,105790.0,1.5379187]
[1749862864114,2.31064299,105800.0,105790.0,1.53791884]
[1749862864571,2.31064299,105800.0,105790.0,1.5379074]
[1749862864992,2.31064299,105800.0,105790.0,1.6940274]
[1749862865204,2.31064299,105800.0,105790.0,1.69402749]
[1749862865820,2.31064299,105800.0,105790.0,1.69402733]
[1749862866043,2.29484299,105800.0,105790.0,1.69402734]
[1749862866252,2.29484299,105800.0,105790.0,1.69402737]
[1749862866910,2.29484299,105800.0,105790.0,1.68517745]
[1749862867136,2.29484299,105800.0,105790.0,1.69402377]
[1749862867357,2.27984299,105800.0,105790.0,1.70982383]
[1749862867572,2.27984299,105800.0,105790.0,1.70982366]
[1749862867778,2.27984299,105800.0,105790.0,1.70097745]
[1749862867995,2.27984299,105800.0,105790.0,1.70982346]
[1749862868239,2.27984299,105800.0,105790.0,1.70097745]
[1749862868655,2.27984299,105800.0,105790.0,1.70982362]
[1749862869113,2.27984299,105800.0,105790.0,1.70982356]
[1749862869324,2.27984299,105800.0,105790.0,1.70982362]
[1749862869549,2.27984299,105800.0,105790.0,1.70982349]
[1749862869780,1.68691491,105800.0,105790.0,1.70982349]
[1749862869997,2.07984299,105800.0,105790.0,1.70982349]
[1749862870229,1.37984299,105800.0,105790.0,1.70982347]
[1749862870479,1.17984299,105800.0,105790.0,1.55370348]
[1749862870721,1.39403051,105800.0,105790.0,1.53790356]
[1749862871162,1.39403051,105800.0,105790.0,1.68517745]
[1749862871380,1.39403051,105800.0,105790.0,1.69402379]
[1749862871812,1.59403051,105800.0,105790.0,1.68517745]
[1749862872028,1.59403051,105800.0,105790.0,1.69402372]
[1749862872231,1.59403051,105800.0,105790.0,1.68517745]
[1749862872450,1.59403051,105800.0,105790.0,1.55995745]
[1749862872451,0.3592731,105800.0,105790.0,1.55995745]
[1749862872668,0.06086554,105800.0,105790.0,1.93348821]
[1749862872881,0.07031715,105800.0,105790.0,1.93348821]
[1749862873089,0.06086616,105800.0,105790.0,1.93348821]
[1749862873266,0.05141455,105800.0,105790.0,1.93348821]
[1749862873523,0.05141455,105800.0,105790.0,2.02963743]
[1749862873524,0.02302611,105800.0,105790.0,2.02963743]
[1749862873741,0.03247763,105800.0,105790.0,2.02963743]
[1749862873949,0.03247754,105800.0,105790.0,1.93348821]
[1749862874155,0.02302611,105800.0,105790.0,1.93348821]
[1749862874537,0.03247754,105800.0,105790.0,1.93348821]
[1749862875168,0.04192915,105800.0,105790.0,1.93348821]
[1749862875968,0.04192924,105800.0,105790.0,1.93348821]
[1749862877127,0.04192915,105800.0,105790.0,2.02963743]
[1749862878040,0.04292915,105800.0,105790.0,2.04063743]
[1749862878659,0.6059909,105800.0,105790.0,1.72707745]
[1749862878876,0.6059909,105800.0,105790.0,1.73649004]
[1749862879098,0.6069909,105800.0,105790.0,1.75049013]
[1749862879552,0.59753947,105800.0,105790.0,1.74103745]
[1749862879797,0.59753947,105800.0,105790.0,1.58495745]
[1749862880052,0.93753947,105800.0,105790.0,1.58495745]
[1749862880286,1.03378123,105800.0,105790.0,1.72569745]
[1749862880508,1.03378123,105800.0,105790.0,1.72573745]
[1749862880748,0.64085315,105800.0,105790.0,1.55405745]
[1749862880974,6.02197708,105800.0,105790.0,1.55405745]
[1749862881676,1.08422208,105800.0,105790.0,1.55405745]
[1749862882844,1.06832208,105800.0,105790.0,1.55405745]
[1749862884041,1.08422208,105800.0,105790.0,1.55405745]
[1749862884255,1.78422208,105800.0,105790.0,1.55405745]
[1749862884704,1.76832208,105800.0,105790.0,1.55405745]
[1749862885331,1.76832208,105800.0,105790.0,1.56935745]
[1749862889106,1.79671008,105800.0,105790.0,1.56935745]
[1749862889310,1.81241008,105800.0,105790.0,1.55405745]
[1749862893602,1.79671008,105800.0,105790.0,1.55405745]
[1749862894019,1.09671008,105800.0,105790.0,1.55405745]
[1749862896613,1.13775008,105800.0,105790.0,1.55405745]
[1749862896920,1.83775008,105800.0,105790.0,1.55405745]
[1749862897279,1.83775008,105800.0,105790.0,1.56995745]
[1749862898506,1.83775008,105800.0,105790.0,1.55405745]
[1749862899921,1.83775008,105800.0,105790.0,1.56995745]
[1749862905895,1.99447008,105800.0,105790.0,1.56995745]
[1749862906538,2.01702161,105800.0,105790.0,1.56995745]
[1749862906751,1.99447008,105800.0,105790.0,1.56995745]
[1749862907000,1.99447008,105800.0,105790.0,1.57881939]
[1749862907212,2.01702161,105800.0,105790.0,1.56995745]
[1749862907660,2.01702921,105800.0,105790.0,1.56995745]
[1749862907887,2.01702921,105800.0,105790.0,1.57881954]
[1749862908113,2.01702921,105800.0,105790.0,1.56995745]
[1749862908303,2.01702921,105800.0,105790.0,1.57881945]
[1749862909464,2.01702921,105800.0,105790.0,1.56995745]
[1749862909685,2.01702921,105800.0,105790.0,1.5788195]
[1749862910332,2.01702921,105800.0,105790.0,1.57881945]
[1749862910533,2.01702921,105800.0,105790.0,1.56995745]
[1749862910792,2.01702921,105800.0,105790.0,1.57881944]
[1749862910990,2.01702921,105800.0,105790.0,1.57881941]
[1749862911203,2.01702921,105800.0,105790.0,1.56995745]
[1749862911620,1.31702921,105800.0,105790.0,1.57881939]
[1749862911890,1.31702921,105800.0,105790.0,1.57881935]
[1749862912123,1.31702921,105800.0,105790.0,1.56995745]
[1749862912354,1.31702921,105800.0,105790.0,1.58545745]
[1749862912864,0.75316028,105800.0,105790.0,1.83648872]
[1749862913092,1.12352923,105800.0,105790.0,1.84535064]
[1749862913314,1.09514123,105800.0,105790.0,1.83648872]
[1749862913788,0.54461139,105800.0,105790.0,1.93111123]
[1749862914012,0.58597139,105800.0,105790.0,1.74205745]
[1749862914239,0.97889947,105800.0,105790.0,1.74205745]
[1749862914713,1.67889947,105800.0,105790.0,1.74205745]
[1749862915445,0.97889947,105800.0,105790.0,1.74205745]
[1749862919042,0.58597139,105800.0,105790.0,1.74205745]
[1749862919259,0.97889947,105800.0,105790.0,1.74205745]
[1749862921668,0.97889947,105800.0,105790.0,1.74209745]
[1749862922558,1.09094123,105800.0,105790.0,1.71077745]
[1749862923230,1.79094123,105800.0,105790.0,1.71077745]
[1749862924135,1.79094123,105800.0,105790.0,1.55405745]
[1749862924357,1.79094123,105800.0,105790.0,1.71077745]
[1749862925955,1.82548208,105800.0,105790.0,1.55405745]
[1749862926170,1.99764208,105800.0,105790.0,1.55405745]
[1749862926622,2.01764208,105800.0,105790.0,1.55405745]
[1749862927307,2.00204208,105800.0,105790.0,1.55405745]
[1749862932377,2.03042908,105800.0,105790.0,1.55405745]
[1749862936545,2.01462908,105800.0,105790.0,1.55405745]
[1749862941156,2.02972908,105800.0,105790.0,1.55405745]
[1749862941399,6.96748408,105800.0,105790.0,1.55405745]
[1749862942105,6.95238408,105800.0,105790.0,1.55405745]
[1749862942833,6.95170408,105800.0,105790.0,1.55405745]
[1749862943069,6.95170408,105800.0,105790.0,1.56935745]
[1749862944795,6.79554408,105800.0,105790.0,1.72551745]
[1749862945489,7.18915544,105800.0,105790.0,1.72551745]
[1749862946421,7.18915544,105800.0,105790.0,1.56935745]
[1749862946636,7.18915544,105800.0,105790.0,1.72551745]
[1749862946849,7.18915544,105800.0,105790.0,1.73436067]
[1749862947042,7.18915544,105800.0,105790.0,1.72551745]
[1749862947305,7.18915544,105800.0,105790.0,1.73436067]
[1749862947534,7.21170179,105800.0,105790.0,1.73436067]
[1749862947763,7.21170179,105800.0,105790.0,1.72551745]
[1749862948428,2.27394679,105800.0,105790.0,1.72551745]
[1749862948646,2.27394679,105800.0,105790.0,1.73436074]
[1749862949558,2.27394679,105800.0,105790.0,1.72551745]
[1749862949796,2.27394679,105800.0,105790.0,1.73436074]
[1749862950254,2.27394679,105800.0,105790.0,1.72551745]
[1749862950452,2.27394679,105800.0,105790.0,1.73437929]
[1749862950907,1.57394679,105800.0,105790.0,1.73437929]
[1749862951224,1.57394679,105800.0,105790.0,1.72551745]
[1749862951451,1.57394679,105800.0,105790.0,1.73437929]